bitfinex/quotes_ETHUSD_20241004
["timestamp","ask_amount","ask_price","bid_price","bid_amount"]
[1728019695480,0.005103,2383.3,2383.2,0.8203]
[1728019701138,0.005103,2383.3,2383.2,5.01633]
[1728019703046,0.005103,2383.3,2383.2,6.81922893]
[1728019703246,0.005103,2383.3,2383.2,6.90313239]
[1728019703539,0.005103,2383.3,2383.2,8.08209272]
[1728019703708,0.005103,2383.3,2383.2,7.9981892]
[1728019704227,0.005103,2383.3,2383.2,8.08209271]
[1728019705210,0.005103,2383.3,2383.2,7.9981892]
[1728019705516,0.005103,2383.3,2383.2,8.0820927]
[1728019707512,0.005103,2383.3,2383.2,8.08208847]
[1728019707840,0.005103,2383.3,2383.2,8.08208732]
[1728019708359,0.005103,2383.3,2383.2,8.08208668]
[1728019709447,0.005103,2383.3,2383.2,7.9981892]
[1728019709756,0.005103,2383.3,2383.2,11.50338657]
[1728019709962,0.005103,2383.3,2383.2,11.4194892]
[1728019710752,0.005103,2383.3,2383.2,10.86332418]
[1728019711354,0.005103,2383.3,2383.2,11.41332418]
[1728019711561,0.005103,2383.3,2383.2,11.41246097]
[1728019718758,0.005103,2383.3,2383.2,11.79744526]
[1728019719239,0.005103,2383.3,2383.2,11.79741797]
[1728019721476,0.005103,2383.3,2383.2,11.41246097]
[1728019721644,0.005103,2383.3,2383.2,12.18326353]
[1728019722142,0.005103,2383.3,2383.2,11.79796258]
[1728019724673,0.005103,2383.3,2383.2,11.41246097]
[1728019724970,0.005103,2383.3,2383.2,11.79831405]
[1728019725347,0.005103,2383.3,2383.2,12.41567898]
[1728019727967,0.005103,2383.3,2383.2,12.41585773]
[1728019728480,0.005103,2383.3,2383.2,11.41246097]
[1728019728680,0.005103,2383.3,2383.2,12.41596704]
[1728019729363,0.005103,2383.3,2383.2,13.29876953]
[1728019732494,0.005103,2383.3,2383.2,13.73783606]
[1728019733500,0.005103,2383.3,2383.2,13.72839509]
[1728019734502,0.005103,2383.3,2383.2,14.17845907]
[1728019736067,0.005103,2383.3,2383.2,12.41596704]
[1728019736268,0.005103,2383.3,2383.2,14.17845907]
[1728019737399,0.005103,2383.3,2383.2,14.1694979]
[1728019737894,0.005103,2383.3,2383.2,12.41596704]
[1728019738094,0.005103,2383.3,2383.2,14.1694965]
[1728019738258,0.005103,2383.3,2383.2,14.60988522]
[1728019740670,0.005103,2383.3,2383.2,12.80698629]
[1728019740866,0.005103,2383.3,2383.2,14.60988522]
[1728019741071,0.005103,2383.3,2383.2,13.60437279]
[1728019741274,0.005103,2383.3,2383.2,14.61049611]
[1728019741595,0.005103,2383.3,2383.2,14.61308983]
[1728019743183,0.005103,2383.3,2383.2,14.1745768]
[1728019743372,0.005103,2383.3,2383.2,14.17489659]
[1728019743876,0.005103,2383.3,2383.2,11.82199766]
[1728019744225,0.005103,2383.3,2383.2,13.23804183]
[1728019744513,0.005103,2383.3,2383.2,13.62508468]
[1728019746610,0.005103,2383.3,2383.2,14.06576233]
[1728019746974,0.005103,2383.3,2383.2,11.86877238]
[1728019747306,0.005103,2383.3,2383.2,14.06576233]
[1728019747813,0.005103,2383.3,2383.2,14.61576233]
[1728019748172,0.005103,2383.3,2383.2,12.41877238]
[1728019748381,0.005103,2383.3,2383.2,12.41854808]
[1728019751028,0.005103,2383.3,2383.2,11.41246097]
[1728019751339,0.005103,2383.3,2383.2,12.41854984]
[1728019752285,0.005103,2383.3,2383.2,11.99288814]
[1728019753488,0.005103,2383.3,2383.2,10.03190307]
[1728019753688,0.005103,2383.3,2383.2,11.44288814]
[1728019754291,0.005103,2383.3,2383.2,8.81968921]
[1728019754517,0.005103,2383.3,2383.2,10.62262167]
[1728019755819,0.005103,2383.3,2383.2,14.44439272]
[1728019756198,0.005103,2383.3,2383.2,14.44397188]
[1728019757807,0.005103,2383.3,2383.2,13.04576025]
[1728019758022,0.005103,2383.3,2383.2,14.44393525]
[1728019758202,0.005103,2383.3,2383.2,14.44425886]
[1728019758995,0.005103,2383.3,2383.2,12.64135993]
[1728019759195,0.005103,2383.3,2383.2,2.0234134]
[1728019759517,0.005103,2383.3,2383.2,5.51710411]
[1728019759518,0.793403,2383.3,2383.2,5.51710411]
[1728019759719,0.793403,2383.3,2383.2,5.07682152]
[1728019760642,0.793403,2383.3,2383.2,5.10165012]
[1728019760937,0.793403,2383.3,2383.2,5.07682152]
[1728019761137,0.793403,2383.3,2383.2,4.27934176]
[1728019761306,0.793403,2383.3,2383.2,5.60041969]
[1728019761505,0.793403,2383.3,2383.2,5.51710411]
[1728019761699,0.005103,2383.3,2383.2,7.50602817]
[1728019761899,0.005103,2383.3,2383.2,7.92732817]
[1728019763133,0.005103,2383.3,2383.2,7.50602817]
[1728019763293,0.793403,2383.3,2383.2,7.31895591]
[1728019764852,0.793403,2383.3,2383.2,5.07622467]
[1728019765915,0.793403,2383.3,2383.2,4.19603]
[1728019776752,0.793403,2383.3,2383.2,3.67808538]
[1728019778243,0.793403,2383.3,2383.2,5.48098431]
[1728019778463,0.793403,2383.3,2383.2,6.57884321]
[1728019778626,0.793403,2383.3,2383.2,5.48098431]
[1728019782067,0.793403,2383.3,2383.2,3.67808538]
[1728019783453,0.793403,2383.3,2383.1,0.4213]
[1728019783649,0.793403,2383.3,2383.0,4.19635]
[1728019785195,0.793403,2383.3,2383.1,4.19617]
[1728019794891,0.793403,2383.3,2383.0,8.39265]
[1728019795059,0.793403,2383.3,2383.1,4.19618]
[1728019795380,0.793403,2383.3,2383.1,3.76997]
[1728019800256,0.793403,2383.3,2383.2,4.19603]
[1728019800692,0.005103,2383.3,2383.2,4.19603]
[1728019804440,0.005103,2383.3,2383.2,0.88019467]
[1728019804947,0.755803,2383.3,2382.9,10.13422698]
[1728019805429,0.755803,2383.3,2383.0,4.19638]
[1728019806229,0.755803,2383.3,2382.9,5.93776698]
[1728019806795,0.755803,2383.3,2382.9,10.13424698]
[1728019807930,0.755803,2383.3,2382.9,5.93776698]
[1728019808100,0.755803,2383.3,2382.9,6.02168971]
[1728019808427,0.755803,2383.3,2382.9,4.70166273]
[1728019808636,0.755803,2383.3,2382.9,8.89814273]
[1728019808837,0.755803,2383.3,2382.9,5.93776698]
[1728019809398,0.755803,2383.3,2382.9,6.02168976]
[1728019809645,0.755803,2383.3,2382.9,5.60038976]
[1728019810004,0.755803,2383.3,2382.9,5.60038975]
[1728019810203,0.755803,2383.3,2383.0,4.19636]
[1728019810601,0.755803,2383.3,2382.9,6.79759847]
[1728019810810,0.755803,2383.3,2382.9,5.6003865]
[1728019811148,4.19632,2383.1,2382.8,1.32002698]
[1728019811342,0.7507,2383.0,2382.7,0.75317794]
[1728019811513,0.7507,2383.0,2382.5,17.61627316]
[1728019811514,0.7507,2382.8,2382.5,17.61627316]
[1728019811717,0.7507,2382.8,2382.5,8.39432]
[1728019812516,0.7507,2382.8,2382.6,4.19704]
[1728019813039,0.7507,2382.8,2382.5,6.00003893]
[1728019813246,0.7507,2382.8,2382.6,4.19709]
[1728019814612,0.7507,2383.1,2382.7,4.19691]
[1728019814951,0.7507,2383.1,2382.9,4.19641]
[1728019815107,0.7507,2383.1,2382.9,8.39287]
[1728019815302,0.7507,2383.1,2382.9,4.19641]
[1728019815515,0.7507,2383.1,2382.9,3.56544058]
[1728019818044,0.755803,2383.3,2382.9,3.56544058]
[1728019818249,0.755803,2383.3,2383.0,4.55292406]
[1728019819863,0.755803,2383.3,2383.0,4.63684383]
[1728019820223,0.755803,2383.3,2383.0,4.55292406]
[1728019820718,0.755803,2383.3,2383.0,4.55281406]
[1728019820919,0.755803,2383.3,2383.0,5.35772406]
[1728019822757,0.755803,2383.3,2383.0,5.44164313]
[1728019823653,0.755803,2383.3,2383.0,5.35772406]
[1728019824170,0.755803,2383.3,2383.0,5.44155312]
[1728019824366,0.005103,2383.3,2383.0,5.44152312]
[1728019824661,0.005103,2383.3,2383.1,4.19621]
[1728019824848,0.005103,2383.3,2383.0,5.35760406]
[1728019825054,0.005103,2383.3,2383.0,5.44152225]
[1728019825242,0.005103,2383.3,2383.0,5.35760406]
[1728019825441,0.005103,2383.3,2383.0,5.44152229]
[1728019825647,0.005103,2383.3,2383.0,5.35760406]
[1728019826141,0.005103,2383.3,2383.1,0.80412959]
[1728019826336,0.005103,2383.3,2383.2,4.19603]
[1728019830980,0.005103,2383.3,2383.1,4.19614]
[1728019831873,0.005103,2383.3,2383.2,4.19603]
[1728019835665,0.005103,2383.3,2383.1,4.1962]
[1728019835976,0.005103,2383.3,2383.2,4.19603]
[1728019837975,0.005103,2383.3,2383.1,8.3923]
[1728019838183,0.005103,2383.3,2383.1,4.1961]
[1728019838375,0.005103,2383.3,2383.0,4.19637]
[1728019838376,0.7811,2383.2,2383.0,4.19637]
[1728019838582,4.97727,2383.2,2382.8,1.32060835]
[1728019838787,5.8950973,2383.2,2382.7,5.51749835]
[1728019839085,5.8950973,2383.2,2382.7,9.71438835]
[1728019839985,0.7811,2383.2,2382.8,4.1967]
[1728019840142,0.005103,2383.3,2383.0,4.19638]
[1728019840343,0.005103,2383.3,2383.0,4.1963]
[1728019840538,0.005103,2383.3,2383.0,4.19629]
[1728019841172,0.005103,2383.3,2382.8,6.28161835]
[1728019841339,0.7811,2383.2,2382.8,9.71384835]
[1728019841553,0.7811,2383.2,2382.8,5.51721835]
[1728019841759,0.7811,2383.2,2383.0,4.19638]
[1728019842479,0.005103,2383.3,2383.0,8.39266]
[1728019842666,0.005103,2383.3,2383.1,4.19617]
[1728019843360,0.005103,2383.3,2383.1,8.39229]
[1728019843682,0.005103,2383.3,2383.2,6.76332893]
[1728019844054,0.005103,2383.3,2383.2,8.46951128]
[1728019844266,0.005103,2383.3,2383.2,9.33216609]
[1728019846071,0.005103,2383.3,2383.2,7.57020293]
[1728019846270,0.005103,2383.3,2383.2,9.32684937]
[1728019846476,0.005103,2383.3,2383.2,11.07050188]
[1728019846993,0.005103,2383.3,2383.2,8.88202895]
[1728019847207,0.005103,2383.3,2383.2,11.06988285]
[1728019848101,0.005103,2383.3,2383.2,9.31323641]
[1728019848298,0.005103,2383.3,2383.2,10.24485336]
[1728019849105,0.005103,2383.3,2383.2,8.44195443]
[1728019849397,0.005103,2383.3,2383.2,5.49526047]
[1728019849556,0.005103,2383.3,2383.2,7.38206829]
[1728019850701,0.005103,2383.3,2383.2,8.21476829]
[1728019850900,0.005103,2383.3,2383.2,8.1308594]
[1728019851560,0.005103,2383.3,2383.2,9.04991915]
[1728019854188,0.005103,2383.3,2383.2,8.17198868]
[1728019859366,0.005103,2383.3,2383.2,9.04991915]
[1728019862795,0.005103,2383.3,2383.2,8.17198868]
[1728019864600,0.005103,2383.3,2383.2,9.4885606]
[1728019865994,0.005103,2383.3,2383.2,5.31294189]
[1728019866197,0.005103,2383.3,2383.2,4.61733]
[1728019867125,0.005103,2383.3,2383.2,0.4213]
[1728019867291,0.781103,2383.3,2383.1,4.19612]
[1728019867488,0.781103,2383.3,2382.9,4.19639]
[1728019867688,0.781103,2383.3,2383.0,4.19623]
[1728019869795,0.781103,2383.3,2382.9,4.19656]
[1728019870005,0.781103,2383.3,2383.1,4.19619]
[1728019870830,0.781103,2383.3,2383.1,4.19613]
[1728019871126,0.781103,2383.3,2383.0,4.19637]
[1728019871324,0.781103,2383.3,2383.0,4.15526168]
[1728019873798,0.781103,2383.3,2383.0,8.35155168]
[1728019874000,0.781103,2383.3,2383.1,4.19619]
[1728019875025,0.781103,2383.3,2383.0,8.35155168]
[1728019875204,0.781103,2383.3,2383.1,4.28010688]
[1728019875528,0.781103,2383.3,2383.1,4.19619]
[1728019877630,0.781103,2383.3,2382.8,5.07430885]
[1728019877831,0.781103,2383.3,2382.9,4.19655]
[1728019878018,0.781103,2383.3,2382.8,5.07430885]
[1728019878224,0.781103,2383.3,2383.0,4.19637]
[1728019878420,0.781103,2383.3,2383.1,4.19621]
[1728019878744,0.781103,2383.3,2383.0,4.19637]
[1728019879245,0.781103,2383.3,2383.0,4.28028838]
[1728019879447,0.781103,2383.3,2383.0,4.19637]
[1728019880348,0.781103,2383.3,2383.1,4.1962]
[1728019881846,0.781103,2383.3,2383.0,4.19637]
[1728019882222,0.781103,2383.3,2383.0,4.28028839]
[1728019882426,0.781103,2383.3,2383.0,4.28019839]
[1728019882943,0.781103,2383.3,2383.0,4.19628]
[1728019883312,0.781103,2383.3,2383.0,8.39257]
[1728019883758,0.781103,2383.3,2383.0,4.19628]
[1728019883961,0.781103,2383.3,2383.0,3.56516482]
[1728019890638,0.776,2383.2,2382.8,4.19661]
[1728019890977,0.776,2383.2,2382.8,3.34213865]
[1728019891734,0.776,2383.1,2382.8,3.34213865]
[1728019893935,0.776,2383.1,2382.8,7.53876865]
[1728019895267,0.776,2383.1,2382.9,4.19654]
[1728019900285,0.776,2383.1,2382.8,7.53877865]
[1728019900479,0.776,2383.1,2382.9,4.19654]
[1728019902092,0.776,2383.1,2382.8,3.34213865]
[1728019906205,1.2737073,2383.1,2382.8,3.34213865]
[1728019908671,0.776,2383.1,2382.8,3.34213865]
[1728019910808,0.776,2383.1,2382.6,4.19696]
[1728019911111,4.19608,2383.2,2382.5,4.19725]
[1728019911112,0.7577,2382.9,2382.5,4.19725]
[1728019911415,0.7577,2382.9,2382.6,4.19709]
[1728019912412,1.253109,2382.9,2382.6,4.19709]
[1728019913015,0.7577,2382.9,2382.6,4.19709]
[1728019918142,0.7577,2382.9,2382.5,4.19726]
[1728019921429,0.7577,2382.9,2382.4,4.1973]
[1728019921430,4.19662,2382.9,2382.4,4.1973]
[1728019921650,0.7577,2382.8,2382.4,4.1973]
[1728019921951,4.95452,2382.8,2382.3,4.61828]
[1728019922258,5.449972,2382.8,2382.3,0.4207]
[1728019922452,0.7577,2382.6,2382.3,0.4207]
[1728019925741,4.95483,2382.6,2382.0,4.96233]
[1728019926056,0.7979,2382.4,2382.0,4.19803]
[1728019927546,4.99535,2382.4,2381.9,4.19831]
[1728019928709,0.7979,2382.4,2382.0,4.1981]
[1728019929116,4.692773,2382.5,2382.0,4.19806]
[1728019929358,4.692773,2382.5,2381.9,6.00120893]
[1728019929359,1.2671773,2382.4,2381.9,6.00120893]
[1728019929559,1.2671773,2382.4,2382.1,4.19795]
[1728019929560,0.7979,2382.4,2382.1,4.19795]
[1728019936239,0.7979,2382.4,2382.0,4.19815]
[1728019938665,0.7979,2382.4,2382.1,4.19795]
[1728019941871,0.7979,2382.4,2382.1,4.18367424]
[1728019946685,0.7979,2382.4,2382.2,4.19778]
[1728019947617,4.19702,2382.7,2382.2,4.19778]
[1728019947789,0.7979,2382.6,2382.4,4.19743]
[1728019949048,0.7979,2382.8,2382.5,4.19727]
[1728019949255,0.7979,2382.8,2382.6,4.19706]
[1728019949481,0.7979,2382.8,2382.3,4.19748]
[1728019949783,0.7979,2382.8,2382.2,4.19777]
[1728019949784,0.7979,2382.6,2382.2,4.19777]
[1728019951411,0.7979,2382.5,2382.1,4.1978]
[1728019952109,4.99517,2382.5,2382.1,4.1978]
[1728019954482,0.8255,2382.4,2382.1,4.1978]
[1728019957310,0.8255,2382.4,2382.1,8.39566]
[1728019957677,0.8255,2382.4,2382.1,4.1978]
[1728019958923,5.0232,2382.3,2381.8,5.07350952]
[1728019959125,0.8255,2382.2,2381.8,4.1985]
[1728019960391,0.8255,2382.2,2381.7,4.61926]
[1728019960612,5.02331,2382.2,2381.7,8.81785]
[1728019961144,0.8255,2382.2,2381.8,4.19848]
[1728019961430,1.3780478,2382.2,2381.8,4.19848]
[1728019962427,4.7504678,2382.2,2381.7,5.49426952]
[1728019962729,0.8255,2382.1,2381.7,4.19856]
[1728019962928,4.19815,2382.0,2381.6,0.87500952]
[1728019963234,4.19815,2382.0,2381.1,14.28731545]
[1728019963235,0.8255,2381.6,2381.2,5.07443952]
[1728019963390,0.8255,2381.6,2381.2,8.3989]
[1728019963391,0.502419,2381.5,2381.2,8.3989]
[1728019963591,0.8255,2381.6,2381.2,8.3989]
[1728019964096,0.8255,2381.6,2381.3,4.19938]
[1728019965033,0.8255,2381.6,2381.4,4.1992]
[1728019965591,0.8255,2381.6,2381.0,1.68800952]
[1728019965592,0.8255,2381.9,2381.5,4.19903]
[1728019965805,0.8255,2381.9,2381.6,4.19876]
[1728019967307,0.8255,2381.9,2381.7,4.19867]
[1728019967630,0.8255,2381.9,2381.5,4.19903]
[1728019968741,0.8255,2381.9,2381.5,4.19894]
[1728019968935,0.8255,2381.9,2381.5,8.39788]
[1728019969148,1.747677,2381.9,2381.5,8.39788]
[1728019969435,1.747677,2381.9,2381.5,4.19894]
[1728019969737,1.747677,2381.9,2381.6,4.19875]
[1728019970034,1.747677,2381.9,2381.5,8.39787]
[1728019970423,1.747677,2381.9,2381.6,4.19885]
[1728019973515,1.747677,2381.9,2381.5,4.19893]
[1728019974045,0.5945947,2381.8,2381.5,8.39786]
[1728019974412,0.5945947,2381.8,2381.5,8.39787]
[1728019974614,0.5945947,2381.8,2381.5,4.19893]
[1728019974815,0.5945947,2381.8,2381.5,8.39787]
[1728019975133,0.5945947,2381.8,2381.5,4.19893]
[1728019977240,0.5945947,2381.8,2381.5,8.39787]
[1728019977456,1.747677,2381.9,2381.5,8.39787]
[1728019977682,1.747677,2381.9,2381.5,4.19893]
[1728019978930,0.8255,2381.9,2381.7,4.1986]
[1728019979314,0.8234,2382.1,2381.7,4.1986]
[1728019981134,0.8234,2382.1,2381.8,4.19842]
[1728019981357,0.8234,2382.3,2382.0,4.19806]
[1728019983475,0.8234,2382.3,2381.9,4.19832]
[1728019983771,3.705229,2382.3,2381.9,4.19832]
[1728019983972,7.902849,2382.3,2381.9,4.19831]
[1728019984393,5.02102,2382.3,2381.9,4.19831]
[1728019984874,5.02102,2382.3,2381.8,4.19841]
[1728019985216,5.02102,2382.3,2381.6,4.95767]
[1728019985217,0.8234,2382.3,2382.0,4.19814]
[1728019985380,0.8234,2382.3,2382.0,8.3962]
[1728019985547,0.8234,2382.3,2382.0,4.19806]
[1728019985748,1.74522,2382.3,2381.8,8.39669]
[1728019986144,1.74522,2382.3,2381.9,4.19825]
[1728019986482,1.74522,2382.3,2382.0,4.19814]
[1728019986874,0.8193,2382.2,2382.0,4.19814]
[1728019987691,0.8193,2382.2,2382.0,8.39619]
[1728019988183,0.8193,2382.2,2382.1,4.19797]
[1728019989169,0.8193,2382.2,2382.0,4.19805]
[1728019989418,0.8193,2382.2,2382.0,8.3961]
[1728019990221,0.8193,2382.2,2382.1,4.19797]
[1728019990425,0.8193,2382.4,2382.2,4.19778]
[1728019991116,0.8193,2382.4,2381.9,0.7624]
[1728019991421,0.8193,2382.6,2382.3,4.1976]
[1728019991574,0.8193,2382.6,2382.3,4.96]
[1728019991775,0.8193,2382.6,2382.4,4.19733]
[1728019991989,0.8193,2382.8,2382.4,4.19733]
[1728019992209,2.09580279,2382.8,2382.4,4.19733]
[1728019992583,6.29256279,2382.8,2382.3,4.95993]
[1728019992902,6.29256279,2382.8,2382.3,4.19753]
[1728019993718,4.19711,2382.6,2382.1,4.19786]
[1728019993885,0.8193,2382.5,2382.1,4.19786]
[1728019994079,1.320941,2382.5,2382.1,8.39574]
[1728019994480,1.320941,2382.5,2382.2,4.19775]
[1728019994682,0.8193,2382.5,2382.2,4.19775]
[1728019995315,0.8193,2382.5,2382.3,4.19753]
[1728019999506,0.8193,2382.7,2382.3,4.19753]
[1728019999834,0.8193,2382.7,2382.4,4.19742]
[1728020000514,0.8193,2382.7,2382.4,8.39478]
[1728020000692,0.8193,2382.7,2382.4,4.19736]
[1728020002733,0.8193,2382.7,2382.3,4.19759]
[1728020003237,0.8193,2382.3,2381.8,9.27170952]
[1728020003532,0.8193,2382.3,2381.9,3.38267681]
[1728020004416,0.8193,2382.3,2381.8,4.19834]
[1728020004721,5.01694,2382.3,2381.8,8.39674]
[1728020005640,0.8193,2382.3,2381.9,4.19823]
[1728020006437,0.8193,2382.2,2381.8,4.19834]
[1728020008213,0.8193,2382.2,2381.8,3.7758529]
[1728020010557,0.8193,2382.2,2381.9,4.1983]
[1728020012063,5.0171,2382.2,2381.8,3.7758529]
[1728020012364,5.938558,2382.2,2381.8,3.7758529]
[1728020012723,1.740758,2382.2,2381.8,3.7758529]
[1728020012949,0.8193,2382.2,2381.9,4.19832]
[1728020013339,0.8193,2382.2,2382.0,4.1981]
[1728020017667,0.7559,2382.5,2382.0,4.19807]
[1728020018365,0.7559,2382.5,2382.1,4.19796]
[1728020018562,0.7559,2382.5,2382.2,4.19769]
[1728020018737,12.26286,2382.7,2382.2,4.19769]
[1728020019525,4.95286,2382.7,2382.2,4.19769]
[1728020020167,0.7559,2382.7,2382.3,4.19758]
[1728020021328,0.7559,2382.7,2382.4,4.19743]
[1728020024843,0.7559,2382.7,2382.4,4.19735]
[1728020031094,0.7559,2382.7,2382.2,4.19767]
[1728020031249,0.7559,2382.7,2382.3,4.1976]
[1728020039181,0.7559,2382.7,2382.4,4.19742]
[1728020041205,4.19763,2382.3,2382.0,0.87500952]
[1728020041501,0.824,2382.1,2381.7,15.8571]
[1728020041697,0.824,2382.1,2381.7,4.19859]
[1728020041887,0.824,2382.1,2381.9,4.19823]
[1728020042897,0.824,2382.3,2381.9,4.19823]
[1728020044386,0.824,2382.3,2381.9,8.39646]
[1728020044697,0.824,2382.3,2382.0,4.19814]
[1728020046308,0.824,2382.3,2381.9,5.01673]
[1728020046515,0.824,2382.3,2382.0,4.19809]
[1728020060291,0.824,2382.3,2381.9,5.01673]
[1728020060518,1.326154,2382.3,2381.9,4.19823]
[1728020061526,5.523784,2382.3,2381.9,4.19823]
[1728020061858,0.7703,2382.1,2381.5,5.07389952]
[1728020062013,0.7703,2381.9,2381.4,0.87500952]
[1728020062349,0.7703,2381.9,2381.3,5.01776]
[1728020062350,4.19851,2381.8,2381.3,5.01776]
[1728020062553,0.7703,2381.7,2381.3,4.19926]
[1728020063852,0.7703,2381.7,2381.3,8.39856]
[1728020064013,4.96898,2381.7,2381.3,4.19926]
[1728020064576,0.7703,2381.7,2381.3,8.39853]
[1728020065289,0.7703,2381.9,2381.5,4.19902]
[1728020065490,0.7703,2381.9,2381.6,4.19885]
[1728020066287,0.7703,2381.9,2381.7,4.19864]
[1728020067547,0.7703,2382.1,2381.7,4.19864]
[1728020074103,0.7703,2382.1,2381.8,5.01699]
[1728020074312,4.19789,2382.2,2381.8,5.01699]
[1728020076874,4.96792,2382.3,2381.8,5.01699]
[1728020077407,4.96792,2382.3,2381.8,9.2154]
[1728020077700,4.96792,2382.3,2381.8,5.01691]
[1728020079309,5.884467,2382.3,2381.8,5.01691]
[1728020085571,4.19788,2382.2,2381.8,0.8185]
[1728020086105,4.19788,2382.2,2381.8,5.017]
[1728020086615,5.884467,2382.3,2381.8,5.017]
[1728020086989,5.884467,2382.3,2381.8,9.2155]
[1728020087330,5.884467,2382.3,2381.8,9.21541]
[1728020087479,5.884467,2382.3,2381.8,5.01691]
[1728020088290,4.19762,2382.3,2381.8,5.01691]
[1728020090644,4.19762,2382.3,2381.8,5.01699]
[1728020091221,0.7683,2382.2,2381.8,5.01699]
[1728020097062,4.19762,2382.3,2381.8,9.21548]
[1728020097213,4.19762,2382.3,2381.9,4.19831]
[1728020098751,4.19762,2382.3,2381.8,5.01691]
[1728020098955,5.113945,2382.3,2381.8,5.01691]
[1728020106991,0.8204,2382.6,2381.9,0.8048]
[1728020107282,11.50701,2382.7,2382.2,4.1977]
[1728020107491,11.50701,2382.7,2382.0,0.07257242]
[1728020107492,4.19709,2382.6,2382.3,0.8048]
[1728020109300,13.20332395,2382.7,2382.3,0.8048]
[1728020110464,17.40037395,2382.7,2382.3,0.8048]
[1728020110662,13.20332395,2382.7,2382.3,0.8048]
[1728020110892,1.4023724,2382.6,2382.3,0.8048]
[1728020111665,5.89332395,2382.7,2382.3,0.8048]
[1728020111864,10.09040395,2382.7,2382.3,0.8048]
[1728020112066,5.89332395,2382.7,2382.3,0.8048]
[1728020112264,4.19701,2382.7,2382.3,0.8048]
[1728020113111,8.39409,2382.7,2382.3,0.8048]
[1728020113283,4.19701,2382.7,2382.3,0.8048]
[1728020114709,5.01715,2382.8,2382.3,5.00241]
[1728020116972,5.01715,2382.8,2382.3,4.17153563]
[1728020117168,4.63574951,2382.9,2382.4,4.19744]
[1728020117414,5.83028446,2382.9,2382.4,4.19744]
[1728020117614,4.63570951,2382.9,2382.5,4.19726]
[1728020117774,4.63570951,2382.9,2382.4,4.19744]
[1728020117775,4.63570951,2382.9,2382.4,8.39478]
[1728020117968,4.63570951,2382.9,2382.4,4.19734]
[1728020118171,4.63570951,2382.9,2382.5,4.19725]
[1728020118376,4.63570951,2382.9,2382.4,4.19734]
[1728020118577,4.63570951,2382.9,2382.4,8.814404]
[1728020118776,4.63570951,2382.9,2382.4,4.617064]
[1728020119074,4.63570951,2382.9,2382.4,8.814424]
[1728020119299,4.63570951,2382.9,2382.4,8.814394]
[1728020120118,4.63570951,2382.9,2382.5,0.7592]
[1728020120277,4.19666,2382.9,2382.5,1.7165594]
[1728020120713,4.19666,2382.9,2382.5,5.9137794]
[1728020121573,4.19666,2382.9,2382.5,4.95642]
[1728020121917,4.19666,2382.9,2382.5,0.7592]
[1728020122715,4.19666,2382.9,2382.5,0.321048]
[1728020124872,4.94846,2382.9,2382.5,0.321048]
[1728020125280,4.94846,2382.9,2382.2,4.19767]
[1728020125489,4.19693,2382.7,2382.2,8.39537]
[1728020125706,4.19693,2382.7,2382.2,9.15457]
[1728020128118,0.7518,2382.6,2382.2,9.15458]
[1728020128894,0.7518,2382.6,2382.2,8.3538133]
[1728020130091,0.7518,2382.6,2382.2,4.1561033]
[1728020131095,0.7518,2382.6,2382.2,8.3538133]
[1728020131317,0.7518,2382.6,2382.2,4.1561033]
[1728020133025,0.7518,2382.6,2382.2,0.7592]
[1728020133237,0.494873,2382.5,2382.2,4.95691]
[1728020133914,0.494873,2382.5,2382.2,4.527643]
[1728020134086,0.494873,2382.5,2382.0,8.3961]
[1728020134420,0.494873,2382.5,2382.1,4.19796]
[1728020134583,0.494873,2382.5,2382.0,4.19803]
[1728020134781,5.01916,2382.4,2382.0,4.19803]
[1728020134985,4.19762,2382.3,2381.8,8.81745]
[1728020135213,4.19762,2382.3,2381.8,4.61907]
[1728020135399,8.39534,2382.3,2381.8,4.19837]
[1728020135597,4.19762,2382.3,2381.8,4.19837]
[1728020135814,0.501932,2382.2,2381.8,8.39678]
[1728020136135,0.8217,2382.4,2381.9,4.19819]
[1728020136136,5.01921,2382.4,2381.9,4.19819]
[1728020137121,5.01921,2382.4,2381.9,5.01559]
[1728020141460,4.19762,2382.3,2381.9,0.8174]
[1728020142131,5.01959,2382.2,2381.7,5.01607]
[1728020142377,5.439352,2382.2,2381.7,5.01607]
[1728020142738,1.241462,2382.2,2381.7,5.01607]
[1728020143837,5.439402,2382.2,2381.7,5.01607]
[1728020145832,1.241462,2382.2,2381.7,5.01607]
[1728020146172,5.439272,2382.2,2381.7,5.01607]
[1728020147386,4.19798,2382.1,2381.7,0.8174]
[1728020147599,4.19798,2382.1,2381.5,0.87500952]
[1728020147600,0.8217,2381.8,2381.5,0.29426847]
[1728020147768,5.02029,2381.8,2381.2,4.19942]
[1728020147966,4.19877,2381.7,2381.2,4.19942]
[1728020148850,5.02029,2381.8,2381.3,4.19937]
[1728020149051,0.502029,2381.7,2381.3,4.19937]
[1728020149649,0.502029,2381.7,2381.2,8.39889]
[1728020149867,0.502029,2381.7,2381.2,4.19942]
[1728020150191,9.21717,2381.6,2381.1,0.8174]
[1728020150493,9.21718,2381.6,2381.0,11.65978]
[1728020150689,5.01818,2381.6,2381.1,4.19972]
[1728020150987,0.501818,2381.5,2381.1,4.19972]
[1728020161603,5.01818,2381.6,2381.2,4.19953]
[1728020162500,0.8193,2381.6,2381.3,4.19938]
[1728020162654,5.01791,2381.8,2381.3,0.7739]
[1728020162857,0.8193,2381.8,2381.4,4.1992]
[1728020163168,0.8193,2381.9,2381.5,4.19902]
[1728020164382,8.0565713,2382.2,2381.7,4.97256]
[1728020164383,0.8193,2382.1,2381.7,4.97256]
[1728020164561,0.8193,2382.1,2381.7,9.17115]
[1728020164759,0.8193,2382.1,2381.7,4.97249]
[1728020164983,0.8193,2382.1,2381.8,4.19849]
[1728020165155,0.8193,2382.1,2381.8,5.115587]